[Event "FIDE WYCC Girls U14 2023"]
[Site "Montesilvano"]
[Date "2023.11.13"]
[Round "1.17"]
[White "Maral Altankhuyag"]
[Black "Sosovickova, Martina"]
[Result "0-1"]
[ECO "A45"]
[WhiteElo "1398"]
[BlackElo "1877"]
[Annotator "NA"]
[PlyCount "102"]
[EventDate "2023.11.13"]
[EventType "swiss"]
[EventCountry "ITA"]
[SourceTitle "playchess.com"]
[Source "ChessBase"]
[SourceQuality "1"]
[TimeControl "40/5400+30:1800+30"]

1. d4 {[%emt 0:00:10]} Nf6 {[%emt 0:00:20]} 2. g3 {[%emt 0:00:17]} e6 {[%emt 0:00:13]} 3. Bg2 {[%emt 0:00:12]} d5 {[%emt 0:00:35]} 4. Nf3 {[%emt 0:00:15]} Bd6 {[%emt 0:01:11]} 5. O-O {[%emt 0:00:31]} O-O {[%emt 0:00:23]} 6. c4 {[%emt 0:00:52]} c6 {[%emt 0:01:31]} 7. Qc2 {[%emt 0:01:13]} Nbd7 {[%emt 0:01:33]} 8. Nc3 {[%emt 0:02:18]} dxc4 {[%emt 0:03:12]} 9. e4 {[%emt 0:03:02]} e5 {[%emt 0:00:59]} 10. dxe5 {[%emt 0:05:21]} Nxe5 {[%emt 0:01:01]} 11. Nxe5 {[%emt 0:09:50]} Bxe5 {[%emt 0:00:17]} 12. Rd1 {[%emt 0:00:46]} Qe7 {[%emt 0:02:58]} 13. Be3 {[%emt 0:16:05]} Bxc3 {[%emt 0:07:20]} 14. Qxc3 {[%emt 0:04:11]} Be6 {[%emt 0:04:48]} 15. b3 {[%emt 0:18:43]} b5 {[%emt 0:06:18]} 16. b4 {[%emt 0:02:03]} Rfd8 {[%emt 0:05:56]} 17. Bc5 {[%emt 0:02:53]} Qc7 {[%emt 0:02:30]} 18. Bd4 {[%emt 0:02:51]} Ne8 {[%emt 0:01:08]} 19. Qe3 {[%emt 0:04:32]} f6 {[%emt 0:05:13]} 20. a4 {[%emt 0:09:39]} Qf7 {[%emt 0:04:19]} 21. axb5 {[%emt 0:02:12]} cxb5 {[%emt 0:00:43]} 22. e5 {[%emt 0:00:53]} Rac8 {[%emt 0:09:05]} 23. Re1 {[%emt 0:03:17]} fxe5 {[%emt 0:03:37]} 24. Qxe5 {[%emt 0:01:22]} Qf5 {[%emt 0:07:18]} 25. Qe3 {[%emt 0:01:00]} Bd5 {[%emt 0:01:35]} 26. Bxd5+ {[%emt 0:06:20]} Qxd5 {[%emt 0:00:46]} 27. Bxa7 {[%emt 0:00:42]} Nf6 {[%emt 0:00:57]} 28. Bc5 {[%emt 0:01:49]} Re8 {[%emt 0:01:05]} 29. Qf4 {[%emt 0:00:28]} Rcd8 {[%emt 0:02:30]} 30. Be3 {[%emt 0:00:35]} Qc6 {[%emt 0:02:18]} 31. Ra7 {[%emt 0:00:39]} Rd7 {[%emt 0:00:32]} 32. Rea1 {[%emt 0:00:21]} Red8 {[%emt 0:01:03]} 33. Rxd7 {[%emt 0:00:11]} Qxd7 {[%emt 0:00:32]} 34. Ra7 {[%emt 0:00:20]} Qd1+ {[%emt 0:00:25]} 35. Kg2 {[%emt 0:00:01]} Qd5+ {[%emt 0:00:29]} 36. f3 {[%emt 0:00:56]} Ra8 {[%emt 0:04:01]} 37. Qc7 {[%emt 0:01:16]} Rxa7 {[%emt 0:01:10]} 38. Qxa7 {[%emt 0:00:02]} h6 {[%emt 0:00:59]} 39. Qb8+ {[%emt 0:00:20]} Kh7 {[%emt 0:00:19]} 40. Qc8 {[%emt 0:00:00]} Qe5 {[%emt 0:00:00]} 41. Qc5 {[%emt 0:07:24]} Qxc5 {[%emt 0:09:02]} 42. bxc5 {[%emt 0:00:11]} b4 {[%emt 0:02:09]} 43. c6 {[%emt 0:00:54]} Nd5 {[%emt 0:00:22]} 44. Kf2 {[%emt 0:00:43]} c3 {[%emt 0:04:52]} 45. Ke2 {[%emt 0:01:42]} b3 {[%emt 0:02:12]} 46. c7 {[%emt 0:03:53]} Nxc7 {[%emt 0:00:39]} 47. Kd3 {[%emt 0:00:04]} b2 {[%emt 0:03:58]} 48. Kc2 {[%emt 0:00:12]} Nb5 {[%emt 0:00:45]} 49. g4 {[%emt 0:00:43]} Na3+ {[%emt 0:00:15]} 50. Kxc3 {[%emt 0:00:11]} b1=Q {[%emt 0:00:10]} 51. Kd4 {[%emt 0:00:06]} Nc2+ {[%emt 0:00:09]} 0-1

[Event "FIDE WYCC Girls U14 2023"]
[Site "Montesilvano"]
[Date "2023.11.13"]
[Round "1.18"]
[White "Maklakova, Naomi"]
[Black "Nguyen, Thuy Linh"]
[Result "1-0"]
[ECO "A61"]
[WhiteElo "1873"]
[BlackElo "1398"]
[Annotator "NA"]
[PlyCount "115"]
[EventDate "2023.11.13"]
[EventType "swiss"]
[EventCountry "ITA"]
[SourceTitle "playchess.com"]
[Source "ChessBase"]
[SourceQuality "1"]
[TimeControl "40/5400+30:1800+30"]

1. d4 {[%emt 0:00:16]} Nf6 {[%emt 0:00:25]} 2. Nf3 {[%emt 0:00:13]} c5 {[%emt 0:00:25]} 3. d5 {[%emt 0:02:26]} e6 {[%emt 0:00:14]} 4. c4 {[%emt 0:01:01]} exd5 {[%emt 0:00:16]} 5. cxd5 {[%emt 0:00:08]} d6 {[%emt 0:00:24]} 6. Nc3 {[%emt 0:00:51]} g6 {[%emt 0:00:25]} 7. e4 {[%emt 0:02:42]} Bg7 {[%emt 0:00:23]} 8. Bd3 {[%emt 0:01:33]} O-O {[%emt 0:00:20]} 9. Nd2 {[%emt 0:01:50]} a6 {[%emt 0:03:25]} 10. a4 {[%emt 0:01:18]} Nbd7 {[%emt 0:00:19]} 11. f4 {[%emt 0:03:03]} Qc7 {[%emt 0:01:23]} 12. O-O {[%emt 0:01:40]} Rb8 {[%emt 0:03:53]} 13. Kh1 {[%emt 0:02:43]} Re8 {[%emt 0:06:14]} 14. Qf3 {[%emt 0:12:11]} b6 {[%emt 0:18:23]} 15. Nc4 {[%emt 0:14:58]} Nh5 {[%emt 0:19:01]} 16. Bd2 {[%emt 0:09:38]} b5 {[%emt 0:05:40]} 17. axb5 {[%emt 0:03:47]} axb5 {[%emt 0:00:16]} 18. Na5 {[%emt 0:03:43]} c4 {[%emt 0:03:55]} 19. Be2 {[%emt 0:03:50]} Nc5 {[%emt 0:01:53]} 20. Nc6 {[%emt 0:02:18]} Rb7 {[%emt 0:01:41]} 21. e5 {[%emt 0:10:17]} Nb3 {[%emt 0:05:39]} 22. exd6 {[%emt 0:02:54]} Qxd6 {[%emt 0:00:45]} 23. Rad1 {[%emt 0:00:42]} Nf6 {[%emt 0:02:02]} 24. h3 {[%emt 0:04:41]} Bf5 {[%emt 0:01:45]} 25. Be3 {[%emt 0:02:38]} Ne4 {[%emt 0:02:28]} 26. Ne5 Nxc3 {[%emt 0:01:59]} 27. bxc3 {[%emt 0:07:23]} Bxe5 {[%emt 0:00:22]} 28. fxe5 {[%emt 0:01:01]} Qxe5 {[%emt 0:02:37]} 29. Bf2 {[%emt 0:00:37]} Be4 {[%emt 0:04:38]} 30. Qg4 {[%emt 0:03:04]} h5 {[%emt 0:04:15]} 31. Qh4 {[%emt 0:00:36]} Bxd5 {[%emt 0:02:03]} 32. Rxd5 {[%emt 0:00:54]} Qxd5 {[%emt 0:00:16]} 33. Bf3 {[%emt 0:00:05]} Qd7 {[%emt 0:04:03]} 34. Rd1 {[%emt 0:00:11]} Qe7 {[%emt 0:02:13]} 35. Re1 {[%emt 0:01:45]} Qd7 {[%emt 0:01:06]} 36. Rxe8+ {[%emt 0:00:12]} Qxe8 {[%emt 0:00:05]} 37. Bxb7 {[%emt 0:00:05]} Qe2 {[%emt 0:00:50]} 38. Bf3 {[%emt 0:00:15]} Qf1+ {[%emt 0:00:22]} 39. Kh2 {[%emt 0:00:08]} Qd3 {[%emt 0:00:58]} 40. Bd4 {[%emt 0:00:00]} Nxd4 {[%emt 0:00:00]} 41. Qxd4 {[%emt 0:02:31]} Qb1 {[%emt 0:01:07]} 42. Qe5 {[%emt 0:00:51]} Qb2 {[%emt 0:00:48]} 43. Bd5 {[%emt 0:00:20]} Qf2 {[%emt 0:01:29]} 44. Bf3 {[%emt 0:01:24]} Qb6 {[%emt 0:00:13]} 45. Qe8+ {[%emt 0:03:44]} Kg7 {[%emt 0:00:15]} 46. Qe4 {[%emt 0:00:44]} Qc7+ {[%emt 0:00:39]} 47. Kh1 {[%emt 0:00:30]} Qb8 {[%emt 0:00:42]} 48. Qd4+ {[%emt 0:00:15]} Kg8 {[%emt 0:00:30]} 49. Qf6 {[%emt 0:00:26]} Qa7 {[%emt 0:01:35]} 50. Bd5 {[%emt 0:00:17]} Kf8 {[%emt 0:00:18]} 51. Qh8+ {[%emt 0:01:07]} Ke7 {[%emt 0:00:12]} 52. Qg7 {[%emt 0:00:04]} Qf2 {[%emt 0:01:17]} 53. Qe5+ {[%emt 0:00:11]} Kf8 {[%emt 0:00:32]} 54. Bc6 {[%emt 0:00:09]} Qf1+ {[%emt 0:01:28]} 55. Kh2 {[%emt 0:00:08]} Kg8 {[%emt 0:00:17]} 56. Bxb5 {[%emt 0:00:30]} h4 {[%emt 0:00:15]} 57. Qc7 {[%emt 0:00:41]} Qe1 {[%emt 0:00:40]} 58. Bxc4 {[%emt 0:00:24]} 1-0

[Event "FIDE WYCC Girls U14 2023"]
[Site "Montesilvano"]
[Date "2023.11.13"]
[Round "1.19"]
[White "Namala, Dhanvi"]
[Black "Negre, Emilie"]
[Result "0-1"]
[ECO "C50"]
[WhiteElo "1388"]
[BlackElo "1871"]
[Annotator "NA"]
[PlyCount "122"]
[EventDate "2023.11.13"]
[EventType "swiss"]
[EventCountry "ITA"]
[SourceTitle "playchess.com"]
[Source "ChessBase"]
[SourceQuality "1"]
[TimeControl "40/5400+30:1800+30"]

1. e4 {[%emt 0:00:02]} e5 {[%emt 0:00:11]} 2. Nf3 {[%emt 0:00:03]} Nc6 {[%emt 0:00:08]} 3. Bc4 {[%emt 0:00:07]} Nf6 {[%emt 0:00:06]} 4. d3 {[%emt 0:00:10]} Bc5 {[%emt 0:00:09]} 5. c3 {[%emt 0:00:11]} d6 {[%emt 0:00:17]} 6. O-O {[%emt 0:00:40]} a6 {[%emt 0:00:49]} 7. Bb3 {[%emt 0:00:20]} Ba7 {[%emt 0:00:34]} 8. Nbd2 {[%emt 0:00:44]} O-O {[%emt 0:00:15]} 9. Re1 {[%emt 0:00:56]} Ne7 {[%emt 0:01:45]} 10. Nf1 {[%emt 0:01:22]} Ng6 {[%emt 0:01:45]} 11. Be3 {[%emt 0:01:41]} Re8 {[%emt 0:10:51]} 12. Ng3 {[%emt 0:01:34]} Bxe3 {[%emt 0:04:28]} 13. fxe3 {[%emt 0:00:33]} d5 {[%emt 0:10:19]} 14. exd5 {[%emt 0:04:48]} Nxd5 {[%emt 0:01:13]} 15. Ne4 {[%emt 0:04:14]} h6 {[%emt 0:23:14]} 16. h3 {[%emt 0:03:58]} b6 {[%emt 0:07:18]} 17. a4 {[%emt 0:10:26]} Be6 {[%emt 0:04:37]} 18. a5 {[%emt 0:04:53]} f5 {[%emt 0:11:11]} 19. Nf2 {[%emt 0:06:10]} Kh8 {[%emt 0:05:19]} 20. e4 {[%emt 0:10:58]} fxe4 {[%emt 0:00:12]} 21. Rxe4 {[%emt 0:01:04]} Bf5 {[%emt 0:01:35]} 22. Re1 {[%emt 0:02:50]} Ndf4 {[%emt 0:02:20]} 23. Bf7 {[%emt 0:03:59]} Re7 {[%emt 0:01:10]} 24. Bxg6 {[%emt 0:04:47]} Nxg6 {[%emt 0:00:56]} 25. axb6 {[%emt 0:03:27]} cxb6 {[%emt 0:00:12]} 26. Re3 {[%emt 0:05:50]} Qc7 {[%emt 0:03:50]} 27. Qe1 {[%emt 0:03:43]} a5 {[%emt 0:00:55]} 28. b4 {[%emt 0:06:56]} Rae8 {[%emt 0:03:57]} 29. bxa5 {[%emt 0:03:48]} bxa5 {[%emt 0:00:04]} 30. c4 {[%emt 0:01:34]} Ra8 {[%emt 0:00:07]} 31. h4 {[%emt 0:02:59]} h5 {[%emt 0:02:11]} 32. d4 {[%emt 0:04:58]} exd4 {[%emt 0:02:33]} 33. Nxd4 {[%emt 0:01:27]} Bg4 {[%emt 0:01:18]} 34. Nxg4 {[%emt 0:01:14]} hxg4 {[%emt 0:00:04]} 35. Rxe7 {[%emt 0:00:45]} Nxe7 {[%emt 0:01:11]} 36. Qe4 {[%emt 0:01:47]} Rd8 {[%emt 0:00:41]} 37. Ne6 {[%emt 0:01:07]} Qa7+ {[%emt 0:00:24]} 38. Kh1 {[%emt 0:01:12]} Rg8 {[%emt 0:00:29]} 39. Qxg4 {[%emt 0:00:35]} g6 {[%emt 0:00:33]} 40. Rf1 {[%emt 0:00:00]} Nf5 {[%emt 0:00:00]} 41. c5 {[%emt 0:09:54]} Qf7 {[%emt 0:11:26]} 42. Rxf5 {[%emt 0:21:54]} Qxf5 {[%emt 0:02:58]} 43. Qd4+ {[%emt 0:00:19]} Kh7 {[%emt 0:01:00]} 44. Qd7+ {[%emt 0:01:18]} Kh6 {[%emt 0:00:30]} 45. Qd2+ {[%emt 0:00:32]} Kh5 {[%emt 0:09:23]} 46. Qe2+ {[%emt 0:00:55]} Kxh4 {[%emt 0:01:40]} 47. Kh2 {[%emt 0:00:34]} Qg4 {[%emt 0:01:32]} 48. Qe1+ {[%emt 0:00:34]} Kh5 {[%emt 0:01:02]} 49. Qe5+ {[%emt 0:00:28]} Kh6 {[%emt 0:02:14]} 50. Qe3+ {[%emt 0:00:32]} g5 {[%emt 0:01:19]} 51. Nd4 {[%emt 0:00:34]} Qf4+ {[%emt 0:01:25]} 52. Qxf4 {[%emt 0:00:30]} gxf4 {[%emt 0:00:06]} 53. c6 {[%emt 0:00:20]} Rc8 {[%emt 0:01:11]} 54. Nf5+ {[%emt 0:00:29]} Kg5 {[%emt 0:00:25]} 55. Ne7 {[%emt 0:00:07]} Rc7 {[%emt 0:00:15]} 56. Nd5 {[%emt 0:00:56]} Rxc6 {[%emt 0:00:15]} 57. Kg1 {[%emt 0:00:34]} a4 {[%emt 0:00:44]} 58. Nb4 {[%emt 0:00:18]} Rc1+ {[%emt 0:00:16]} 59. Kf2 {[%emt 0:00:06]} a3 {[%emt 0:00:06]} 60. Ke2 {[%emt 0:00:31]} a2 {[%emt 0:00:11]} 61. Nd3 {[%emt 0:01:00]} a1=Q {[%emt 0:00:29]} 0-1

[Event "FIDE WYCC Girls U14 2023"]
[Site "Montesilvano"]
[Date "2023.11.13"]
[Round "1.20"]
[White "Huseynova, Lala"]
[Black "Mrad, Anahid"]
[Result "1-0"]
[ECO "C63"]
[WhiteElo "1867"]
[BlackElo "1378"]
[Annotator "NA"]
[PlyCount "65"]
[EventDate "2023.11.13"]
[EventType "swiss"]
[EventCountry "ITA"]
[SourceTitle "playchess.com"]
[Source "ChessBase"]
[SourceQuality "1"]
[TimeControl "40/5400+30:1800+30"]

1. e4 {[%emt 0:00:04]} e5 {[%emt 0:00:08]} 2. Nf3 {[%emt 0:00:05]} Nc6 {[%emt 0:00:08]} 3. Bb5 {[%emt 0:00:03]} f5 {[%emt 0:00:20]} 4. d3 {[%emt 0:00:21]} fxe4 {[%emt 0:00:18]} 5. dxe4 {[%emt 0:00:28]} d6 {[%emt 0:01:09]} 6. Nc3 {[%emt 0:10:57]} Nf6 {[%emt 0:00:59]} 7. h3 {[%emt 0:01:52]} h6 {[%emt 0:00:47]} 8. Nh4 {[%emt 0:01:58]} Be6 {[%emt 0:03:23]} 9. Ng6 {[%emt 0:08:43]} Rg8 {[%emt 0:01:12]} 10. O-O {[%emt 0:02:31]} Bf7 {[%emt 0:00:55]} 11. Nxf8 {[%emt 0:00:21]} Rxf8 {[%emt 0:00:16]} 12. f4 {[%emt 0:03:18]} Qe7 {[%emt 0:02:03]} 13. Nd5 {[%emt 0:02:46]} Qd7 {[%emt 0:01:55]} 14. fxe5 {[%emt 0:01:50]} Nxe4 {[%emt 0:01:35]} 15. Re1 {[%emt 0:18:30]} Nf2 {[%emt 0:06:29]} 16. e6 {[%emt 0:04:21]} Bxe6 {[%emt 0:02:15]} 17. Qe2 {[%emt 0:01:50]} Rf5 {[%emt 0:02:45]} 18. Qxe6+ {[%emt 0:10:15]} Qxe6 {[%emt 0:00:41]} 19. Rxe6+ {[%emt 0:00:07]} Kf7 {[%emt 0:00:50]} 20. Re2 {[%emt 0:00:37]} Nd1 {[%emt 0:02:33]} 21. Rd2 {[%emt 0:02:22]} a6 {[%emt 0:02:48]} 22. Ba4 {[%emt 0:00:42]} Rc8 {[%emt 0:00:38]} 23. Rxd1 {[%emt 0:00:16]} Ke6 {[%emt 0:01:12]} 24. Bb3 {[%emt 0:01:03]} Kd7 {[%emt 0:00:40]} 25. Be3 {[%emt 0:01:26]} Re8 {[%emt 0:03:02]} 26. Rf1 {[%emt 0:01:10]} Rh5 {[%emt 0:02:49]} 27. Rf7+ {[%emt 0:00:19]} Kc8 {[%emt 0:00:55]} 28. Rxc7+ {[%emt 0:00:20]} Kb8 {[%emt 0:00:39]} 29. Rxg7 {[%emt 0:00:35]} Rh8 {[%emt 0:01:50]} 30. Rf1 {[%emt 0:00:14]} Rh4 {[%emt 0:02:46]} 31. Rff7 {[%emt 0:00:12]} Rc8 {[%emt 0:03:37]} 32. Rxb7+ {[%emt 0:00:01]} Ka8 {[%emt 0:03:51]} 33. Nb6# {[%emt 0:00:04]} 1-0

[Event "FIDE WYCC Girls U14 2023"]
[Site "Montesilvano"]
[Date "2023.11.13"]
[Round "1.21"]
[White "Sivashankar, Samyukta"]
[Black "Zagorac, Lara"]
[Result "0-1"]
[ECO "B27"]
[WhiteElo "1348"]
[BlackElo "1866"]
[Annotator "NA"]
[PlyCount "92"]
[EventDate "2023.11.13"]
[EventType "swiss"]
[EventCountry "ITA"]
[SourceTitle "playchess.com"]
[Source "ChessBase"]
[SourceQuality "1"]
[TimeControl "40/5400+30:1800+30"]

1. e4 {[%emt 0:00:02]} c5 {[%emt 0:00:08]} 2. Nf3 {[%emt 0:00:18]} g6 {[%emt 0:00:10]} 3. c3 {[%emt 0:00:13]} Bg7 {[%emt 0:00:28]} 4. d4 {[%emt 0:00:15]} cxd4 {[%emt 0:00:15]} 5. cxd4 {[%emt 0:00:15]} d5 {[%emt 0:00:19]} 6. e5 {[%emt 0:00:20]} Nc6 {[%emt 0:00:27]} 7. h3 {[%emt 0:03:49]} a6 {[%emt 0:05:07]} 8. Bd3 {[%emt 0:03:12]} Nh6 {[%emt 0:02:57]} 9. Nbd2 {[%emt 0:02:46]} Bf5 {[%emt 0:12:38]} 10. Nb3 {[%emt 0:02:08]} Bxd3 {[%emt 0:03:55]} 11. Qxd3 {[%emt 0:00:28]} Rc8 {[%emt 0:03:25]} 12. Bd2 {[%emt 0:05:42]} Qb6 {[%emt 0:07:01]} 13. Rc1 {[%emt 0:12:55]} O-O {[%emt 0:02:31]} 14. O-O {[%emt 0:00:37]} Nf5 {[%emt 0:04:55]} 15. Nc5 {[%emt 0:11:29]} Rfd8 {[%emt 0:21:35]} 16. a3 {[%emt 0:02:56]} Nxe5 {[%emt 0:10:45]} 17. Nxe5 {[%emt 0:04:54]} Bxe5 {[%emt 0:01:23]} 18. Nb3 {[%emt 0:06:27]} Bc7 {[%emt 0:02:53]} 19. Ba5 {[%emt 0:07:25]} Qd6 {[%emt 0:00:21]} 20. Rxc7 {[%emt 0:02:17]} Rxc7 {[%emt 0:00:14]} 21. Bxc7 {[%emt 0:00:59]} Qxc7 {[%emt 0:00:07]} 22. Rc1 {[%emt 0:02:16]} Qb6 {[%emt 0:02:54]} 23. Nc5 {[%emt 0:02:58]} Rc8 {[%emt 0:02:19]} 24. Kh2 {[%emt 0:01:17]} Qxb2 {[%emt 0:03:31]} 25. Rb1 {[%emt 0:01:07]} Qxd4 {[%emt 0:01:13]} 26. Qxd4 {[%emt 0:01:24]} Nxd4 {[%emt 0:00:08]} 27. Nd7 {[%emt 0:00:22]} Nb5 {[%emt 0:01:29]} 28. a4 {[%emt 0:00:30]} Nd6 {[%emt 0:00:14]} 29. Nb6 {[%emt 0:00:56]} Rc5 {[%emt 0:00:20]} 30. Kg3 {[%emt 0:00:53]} e6 {[%emt 0:02:01]} 31. Kf4 {[%emt 0:00:57]} Kg7 {[%emt 0:00:32]} 32. Ke5 {[%emt 0:00:30]} Nc4+ {[%emt 0:01:02]} 33. Kd4 {[%emt 0:00:34]} Ra5 {[%emt 0:00:35]} 34. Nxc4 {[%emt 0:00:12]} dxc4 {[%emt 0:00:21]} 35. Rxb7 {[%emt 0:01:01]} Rxa4 {[%emt 0:00:07]} 36. Rc7 {[%emt 0:00:28]} Ra2 {[%emt 0:00:08]} 37. Ke3 {[%emt 0:00:59]} Ra3+ {[%emt 0:00:25]} 38. Kd4 {[%emt 0:00:21]} Rd3+ {[%emt 0:00:26]} 39. Kxc4 {[%emt 0:00:23]} Rd2 {[%emt 0:00:15]} 40. Ra7 {[%emt 0:00:00]} Rxf2 {[%emt 0:00:00]} 41. Rxa6 {[%emt 0:01:02]} Rxg2 {[%emt 0:00:27]} 42. Ra3 {[%emt 0:00:47]} Rd2 {[%emt 0:00:07]} 43. Rd3 {[%emt 0:00:38]} Rxd3 {[%emt 0:00:23]} 44. Kxd3 {[%emt 0:00:08]} f5 {[%emt 0:00:06]} 45. Ke3 {[%emt 0:00:24]} Kf6 {[%emt 0:00:11]} 46. h4 {[%emt 0:00:19]} Ke5 0-1

[Event "FIDE WYCC Girls U14 2023"]
[Site "Montesilvano"]
[Date "2023.11.13"]
[Round "1.22"]
[White "Yu, Avery"]
[Black "Poetscher, Katharina"]
[Result "0-1"]
[ECO "B28"]
[WhiteElo "1861"]
[BlackElo "1345"]
[Annotator "NA"]
[PlyCount "132"]
[EventDate "2023.11.13"]
[EventType "swiss"]
[EventCountry "ITA"]
[SourceTitle "playchess.com"]
[Source "ChessBase"]
[SourceQuality "1"]
[TimeControl "40/5400+30:1800+30"]

1. e4 {[%emt 0:00:01]} c5 {[%emt 0:00:05]} 2. Nf3 {[%emt 0:00:04]} a6 {[%emt 0:00:03]} 3. d4 {[%emt 0:00:17]} cxd4 {[%emt 0:00:06]} 4. Nxd4 {[%emt 0:00:05]} Nf6 {[%emt 0:00:08]} 5. Nc3 {[%emt 0:05:22]} e5 {[%emt 0:00:08]} 6. Nb3 {[%emt 0:04:15]} Bb4 {[%emt 0:01:17]} 7. Qf3 {[%emt 0:09:08]} d6 {[%emt 0:10:54]} 8. Bd2 {[%emt 0:04:02]} Nc6 {[%emt 0:03:53]} 9. a3 {[%emt 0:04:58]} Bg4 {[%emt 0:05:09]} 10. Qd3 {[%emt 0:01:06]} Bc5 {[%emt 0:00:44]} 11. f3 {[%emt 0:07:28]} Be6 {[%emt 0:01:51]} 12. Ne2 {[%emt 0:18:51]} Bb6 {[%emt 0:04:40]} 13. Bg5 {[%emt 0:01:40]} Bc7 {[%emt 0:05:24]} 14. O-O-O {[%emt 0:02:11]} Rc8 {[%emt 0:09:43]} 15. Kb1 {[%emt 0:01:13]} O-O {[%emt 0:02:39]} 16. f4 {[%emt 0:03:12]} exf4 {[%emt 0:02:19]} 17. Nxf4 {[%emt 0:07:32]} Bg4 {[%emt 0:04:06]} 18. Re1 {[%emt 0:03:23]} Ne5 {[%emt 0:01:12]} 19. Qe3 {[%emt 0:03:57]} Bb6 {[%emt 0:02:02]} 20. Nd4 {[%emt 0:05:51]} h6 {[%emt 0:01:32]} 21. Bxf6 Qxf6 {[%emt 0:01:05]} 22. Nd5 {[%emt 0:01:21]} Qd8 {[%emt 0:00:31]} 23. h3 {[%emt 0:02:40]} Bh5 {[%emt 0:02:22]} 24. g4 {[%emt 0:02:44]} Bg6 {[%emt 0:00:46]} 25. Rd1 {[%emt 0:02:02]} Re8 {[%emt 0:01:46]} 26. Qf4 {[%emt 0:02:24]} Bxd4 {[%emt 0:05:38]} 27. Rxd4 {[%emt 0:00:01]} Nc6 {[%emt 0:00:33]} 28. Rd2 {[%emt 0:02:19]} Rxe4 {[%emt 0:00:45]} 29. Qf2 {[%emt 0:00:24]} Re6 {[%emt 0:04:16]} 30. Bg2 {[%emt 0:00:46]} Ne7 {[%emt 0:02:37]} 31. Nb4 {[%emt 0:01:51]} Rc7 {[%emt 0:03:04]} 32. Rhd1 {[%emt 0:00:24]} Rd7 {[%emt 0:01:21]} 33. Qg3 {[%emt 0:00:53]} a5 {[%emt 0:02:46]} 34. Nd3 {[%emt 0:00:02]} Bxd3 {[%emt 0:02:50]} 35. Rxd3 {[%emt 0:00:09]} d5 {[%emt 0:00:16]} 36. g5 {[%emt 0:02:25]} hxg5 {[%emt 0:02:57]} 37. Qxg5 {[%emt 0:00:13]} Rg6 {[%emt 0:00:48]} 38. Qd2 {[%emt 0:00:04]} Rgd6 {[%emt 0:01:06]} 39. c4 {[%emt 0:00:38]} d4 {[%emt 0:00:30]} 40. c5 {[%emt 0:00:00]} Rg6 {[%emt 0:00:00]} 41. Be4 {[%emt 0:01:49]} Rh6 {[%emt 0:02:39]} 42. Rg1 {[%emt 0:05:01]} Re6 {[%emt 0:06:30]} 43. Qg2 {[%emt 0:01:52]} Ng6 {[%emt 0:01:29]} 44. Bf5 {[%emt 0:03:34]} Re3 {[%emt 0:01:51]} 45. Rxe3 {[%emt 0:02:10]} dxe3 {[%emt 0:00:08]} 46. Bxd7 {[%emt 0:00:03]} Qxd7 {[%emt 0:00:12]} 47. Qe4 {[%emt 0:11:33]} Qe7 {[%emt 0:06:44]} 48. Rg4 {[%emt 0:07:01]} f5 {[%emt 0:02:08]} 49. Qd5+ {[%emt 0:02:36]} Kh8 {[%emt 0:01:46]} 50. Rxg6 {[%emt 0:02:42]} e2 {[%emt 0:00:43]} 51. Re6 {[%emt 0:00:06]} e1=Q+ {[%emt 0:00:10]} 52. Rxe1 {[%emt 0:00:02]} Qxe1+ {[%emt 0:00:17]} 53. Ka2 {[%emt 0:00:00]} Qe4 {[%emt 0:00:33]} 54. Qxe4 {[%emt 0:02:08]} fxe4 {[%emt 0:00:10]} 55. Kb3 {[%emt 0:00:01]} Kh7 {[%emt 0:00:47]} 56. Kc3 {[%emt 0:00:09]} Kg6 {[%emt 0:00:11]} 57. Kd4 {[%emt 0:00:26]} Kf5 {[%emt 0:00:09]} 58. Ke3 {[%emt 0:00:07]} a4 {[%emt 0:00:33]} 59. h4 {[%emt 0:01:04]} g6 {[%emt 0:00:11]} 60. Ke2 {[%emt 0:00:22]} Kf4 {[%emt 0:00:15]} 61. Kf2 {[%emt 0:00:11]} e3+ {[%emt 0:00:41]} 62. Ke2 {[%emt 0:00:05]} Ke4 {[%emt 0:00:04]} 63. Ke1 {[%emt 0:00:11]} Kd3 {[%emt 0:00:05]} 64. Kd1 {[%emt 0:00:12]} e2+ {[%emt 0:00:32]} 65. Ke1 {[%emt 0:00:04]} Ke3 {[%emt 0:00:18]} 66. c6 bxc6 0-1